Cogmind - Beta 17.1 @@@ ROGUE MODE // 2026.09.13 @ 15:17:29 Player: Firely Result: Destroyed self with Grenade Launcher Performance ------------- Evolutions (0) 0 Regions Visited (2) 400 Robots Destroyed (21) 105 Value Destroyed (602) 602 Prototype IDs (2) 40 Alien Tech Used (0) 0 Bonus (0) 0 TOTAL SCORE: 1147 Bonus ------- None Cogmind --------- Core Integrity 0/250 Matter 370/400 Energy 240/250 System Corruption 0% Temperature Cool (81) Movement Treading (160) Location -10/Mines Parts ------- > --- POWER (1) -------- Ion Engine > --- PROPULSION (2) --- Light Treads Light Treads > --- UTILITY (2) ------ Large Storage Unit Medium Matter Pod > --- WEAPON (2) ------- Particle Gun Grenade Launcher > --- INVENTORY (15) --- Ion Engine Light Ion Engine Light Treads Light Treads Light Treads Improved Heat Sink Small Storage Unit Medium Storage Unit Sensor Array Signal Interpreter Hacking Suite Authchip [R/Combat] Particle Gun Assault Rifle Light Cannon Peak State ------------ > --- POWER ------------ Light Nuclear Core > --- PROPULSION ------- Light Treads Light Treads > --- UTILITY ---------- Medium Storage Unit Seismic Detector > --- WEAPON ----------- Assault Rifle Assault Rifle > --- INVENTORY -------- Ion Engine Light Treads Light Treads Light Treads Improved Heat Sink Small Storage Unit Medium Matter Pod Signal Interpreter Terrain Scanner Hacking Suite [Rating: 10] Favorites ----------- Power Ion Engine Engine Ion Engine Power Core Light Nuclear Core Propulsion Light Treads Treads Light Treads Utility Medium Matter Pod Device Seismic Detector Storage Medium Matter Pod Weapon Assault Rifle Energy Gun Particle Gun Ballistic Gun Assault Rifle Launcher Grenade Launcher Build | -11 -10 -10 ------- Run | Yrd Mat Min Slots Evolved . | . . . Power . | . . . Propulsion . | . . . Utility . | . . . Weapon . | . . . Parts Attached 18 | 5 12 1 Power 3 | 1 2 . Engine 2 | 1 1 . Core 1 | . 1 . Reactor . | . . . Propulsion 6 | 1 5 . Treads 6 | 1 5 . Leg . | . . . Wheel . | . . . Hover . | . . . Flight . | . . . Utility 5 | 1 4 . Device 1 | . 1 . Storage 4 | 1 3 . Processor . | . . . Hackware . | . . . Protection . | . . . Artifact . | . . . Weapon 4 | 2 1 1 Energy Gun 1 | . 1 . Energy Cannon . | . . . Ballistic Gun 2 | 2 . . Ballistic Cannon . | . . . Launcher 1 | . . 1 Special Weapon . | . . . Impact Weapon . | . . . Slashing Weapon . | . . . Piercing Weapon . | . . . Special Melee Weapon . | . . . Unidentified Prototypes . | . . . Parts Lost 2 | . 2 . Power 1 | . 1 . Propulsion . | . . . Utility . | . . . Weapon 1 | . 1 . Highest Loss Streak 2 | . 2 . To Critical Strikes . | . . . Average Backups 9 | 3 9 15 Power 1 | . . 2 Propulsion 2 | 1 2 3 Utility 4 | . 4 7 Weapon 1 | 1 1 3 Tool/Special . | . . . Unused Backups 20 | . 8 12 Power 2 | . . 2 Propulsion 7 | . 4 3 Utility 8 | . 3 5 Weapon 3 | . 1 2 Tool/Special . | . . . Average Slot Usage (%) 97 | . 97 100 Engine 11 | . 11 14 Core 2 | . 2 . Treads 26 | . 26 28 Device 5 | . 6 . Storage 21 | . 21 28 Energy Gun 5 | . 5 14 Ballistic Gun 22 | . 22 14 Peak Build Rating 10 | 5 10 10 Average Rating 8 | 3 8 10 On Entrance 5 | . 5 10 Avg Prop Armor Cover (%) . | . . . Naked Turns . | . . . Heaviest Build 32 | 14 32 32 Greatest Support 40 | 20 40 40 Greatest Overweight (x) . | . . . Average Overweight (x) . | . . . Largest Inventory Capacity 15 | 8 15 15 Average Capacity 11 | 7 11 15 Most Carried 15 | 5 15 15 Average Carried 9 | 3 9 15 Final Capacity 15 | 8 15 15 Final Carried 15 | 5 15 15 Class Distribution -------------------- 95% | Mutant 4% | Scavenger-Mutant Dominant Class ---------------- Mutant | -10/Materials Mutant | -10/Mines Resources | -11 -10 -10 ----------- Run | Yrd Mat Min Matter Collected 938 | 250 688 . Remotely . | . . . Salvage Created 874 | . 863 11 Parts 49 | . 49 . Haulers Intercepted 2 | . 2 . Recyclers Shooed 5 | . 5 . Parts Field Recycled . | . . . Retrieved Matter . | . . . Parts Self-Destructed . | . . . Prevented . | . . . Parts Restored . | . . . Kills | -11 -10 -10 ------- Run | Yrd Mat Min Combat Hostiles Destroyed 16 | . 14 2 Guns 14 | . 14 . AOE 2 | . . 2 Classes Destroyed 6 | . 5 1 Hauler 2 | . 2 . Recycler 1 | . 1 . Operator 1 | . 1 . Watcher 3 | . 3 . Grunt 14 | . 14 . Assembled 2 | . . 2 Best Kill Streak 3 | . 3 2 Combat Bots Only 3 | . 3 2 Max Kills in Single Turn 2 | . 1 2 Gunslinging . | . . . Exploded 2 | . . 2 Melee . | . . . Uniques/NPCs Destroyed . | . . . Combat | -11 -10 -10 -------- Run | Yrd Mat Min Hostile Shots Fired 82 | . 72 10 Missed 17 | . 12 5 Hits 65 | . 60 5 Melee 3 | . . 3 Projectile 62 | . 60 2 Critical Strikes 1 | . . 1 Damage Taken 906 | . 752 154 Core 261 | . 183 78 Absorbed by Shields . | . . . Core Remaining (%) 100 | 100 . . Volleys Fired 76 | . 72 4 Largest 2 | . 2 2 Hottest 95 | . 85 95 Shots Fired 150 | . 144 6 Gun 148 | . 144 4 Cannon . | . . . Launcher 2 | . . 2 Special . | . . . Kinetic 132 | . 132 . Thermal 16 | . 12 4 Explosive 2 | . . 2 Electromagnetic . | . . . Robot Hit Streak 13 | . 13 4 Robot Miss Streak 3 | . 3 2 Penetration Max . | . . . Secondary Targets 2 | . 2 . Max Gunslinging Chain 1 | . 1 . Shots Hit Robots 106 | . 104 2 Core Hits 46 | . 43 3 Critical Kills 1 | . 1 . Critical Parts Destroyed . | . . . Critical Strikes 1 | . 1 . Destroy 1 | . 1 . Melee Attacks . | . . . Impact . | . . . Slashing . | . . . Piercing . | . . . Sneak Attacks . | . . . Combat Hostiles . | . . . Follow-up Attacks . | . . . Damage Inflicted 1633 | . 1365 268 Guns 1375 | . 1360 15 Cannons . | . . . Explosions 253 | . . 253 Melee . | . . . Ramming 5 | . 5 . Kinetic 1221 | . 1221 . Thermal 154 | . 139 15 Explosive 253 | . . 253 Electromagnetic . | . . . Impact . | . . . Slashing . | . . . Piercing . | . . . Highest Corruption . | . . . Average Corruption . | . . . Corruption Purged . | . . . Corruption Blocked . | . . . Overload Shots . | . . . Overflow Damage 11 | . . 11 Projectiles . | . . . Explosions 11 | . . 11 Melee . | . . . Knockbacks . | . . . Impact . | . . . Kinetic . | . . . Secondary . | . . . Self-Inflicted Damage 34 | . . 34 Shots 1 | . . 1 Rammed 3 | . 3 . Targets Rammed 3 | . 3 . Kicked . | . . . Crushed . | . . . Highest Temperature 312 | . 312 81 Average Temperature 95 | . 100 45 Received Heat Transfer 423 | . 423 . Siege Activations . | . . . Martial Activations . | . . . Shielding Activations . | . . . Robots Disrupted . | . . . Combat Hostiles . | . . . Robots Corrupted . | . . . Combat Hostiles . | . . . Parts Fried . | . . . Impact Corruptions . | . . . Robots Melted . | . . . Combat Hostiles . | . . . Parts Melted . | . . . Heat Transferred 370 | . 333 37 Parts Sabotaged . | . . . Parts Stolen . | . . . Parts Stripped . | . . . Power Chain Reactions . | . . . Alert | -11 -10 -10 ------- Run | Yrd Mat Min Maximum Alert Level . | . . . Low Security (%) 100 | 100 100 100 Level 1 . | . . . Level 2 . | . . . Level 3 . | . . . Level 4 . | . . . Level 5 . | . . . High Security . | . . . Max Security . | . . . Peak Influence 68 | . 68 22 Initial 22 | . . 22 Average 14 | . 15 12 Influence Increases 453 | . 440 13 Destroy 0b10 Robot/C 280 | . 280 . Destroy 0b10 Robot/NC 35 | . 35 . Destroy Leader 70 | . 70 . Successful Hack 23 | . 23 . Destroy Structure 15 | . 2 13 Lose Combat Pursuer 30 | . 30 . Influence Decreases 448 | . 381 67 Entered New Map 37 | . . 37 Time Decay 401 | . 371 30 Lost Part 10 | . 10 . Squads Dispatched 2 | . 2 . Investigation 1 | . 1 . Extermination . | . . . Reinforcement 1 | . 1 . Assault . | . . . Garrison . | . . . Intercept . | . . . Searches Triggered . | . . . Construction Impeded . | . . . Haulers Reinforced . | . . . Active Scanning Responses . | . . . Cargo Convoy Interrupts . | . . . Stealth | -11 -10 -10 --------- Run | Yrd Mat Min Distress Signals 1 | . 1 . Communications Jammed . | . . . Distress Signals . | . . . Times Spotted 42 | . 30 12 Peak Tracking Total 19 | . 4 19 Tactical Retreats 2 | . 2 . Traps | -11 -10 -10 ------- Run | Yrd Mat Min Traps Triggered 3 | . 3 . Indirectly . | . . . Trap Hack Attempts . | . . . Triggered . | . . . Disarmed . | . . . Reprogrammed . | . . . Reused . | . . . Traps Extracted . | . . . Installed . | . . . Triggered . | . . . Machines | -11 -10 -10 ---------- Run | Yrd Mat Min Machines Disabled . | . . . Max in Single Turn . | . . . Machines Repaired . | . . . Machines Dismantled . | . . . Machines Sabotaged . | . . . Overloaded Fab Kills . | . . . Hacking | -11 -10 -10 --------- Run | Yrd Mat Min Machines Accessed 9 | . 9 . Terminals 7 | . 7 . Fabricators . | . . . Repair Stations . | . . . Recycling Units 2 | . 2 . Scanalyzers . | . . . Garrison Access . | . . . Total Hacks 19 | . 19 . Successful 11 | . 11 . Failed 8 | . 8 . Catastrophic 1 | . 1 . Database Lockouts . | . . . Manual . | . . . Terminals 14 | . 14 . Fabricators . | . . . Repair Stations . | . . . Recycling Units 5 | . 5 . Scanalyzers . | . . . Garrison Access . | . . . Terminal Hacks 7 | . 7 . Prototype ID Bank 1 | . 1 . Emergency Access Points 1 | . 1 . Locate Traps 1 | . 1 . Maintenance Status 1 | . 1 . Transport Status 1 | . 1 . Hauler Manifests 1 | . 1 . Zone Layout 1 | . 1 . Fabricator Hacks . | . . . Repair Station Hacks . | . . . Recycling Unit Hacks 4 | . 4 . Process 1 | . 1 . Report Inventory 2 | . 2 . Retrieve Components 1 | . 1 . Scanalyzer . | . . . Garrison Access Hacks . | . . . Unauthorized Hacks . | . . . Terminals . | . . . Fabricators . | . . . Repair Stations . | . . . Recycling Units . | . . . Scanalyzers . | . . . Garrison Access . | . . . Data Cores Recovered . | . . . Used . | . . . Hacking Detections 5 | . 5 . Full Trace Events 1 | . 1 . Feedback Events . | . . . Feedback Blocked . | . . . Robot Schematics Acquired . | . . . Robots Built . | . . . Authchips . | . . . Time . | . . . Total Robot Build Rating . | . . . Part Schematics Acquired . | . . . Parts Built . | . . . Authchips . | . . . Time . | . . . Total Part Build Rating . | . . . Part Studies Acquired . | . . . Parts Repaired . | . . . Time . | . . . Parts Recycled . | . . . Recycled Matter 205 | . 205 . Retrieved Matter . | . . . Retrieved Components 3 | . 3 . Parts Scanalyzed . | . . . Part Schematics Acquired . | . . . Parts Damaged . | . . . Bothacking | -11 -10 -10 ------------ Run | Yrd Mat Min Used RIF Installer . | . . . Robots Hacked . | . . . Non-combat . | . . . Combat . | . . . Robot Hacks Applied . | . . . Relay Couplers Released . | . . . Fabnet Peak Effective % . | . . . Robots Rewired . | . . . Allies Hacked . | . . . Hacks Repelled . | . . . Allies | -11 -10 -10 -------- Run | Yrd Mat Min Total Allies . | . . . Largest Group . | . . . Highest-Rated Group . | . . . Highest-Rated Ally . | . . . Total Orders . | . . . Ally Attacks . | . . . Total Damage . | . . . Kills . | . . . Allies Corrupted . | . . . Allies Melted . | . . . Intel | -11 -10 -10 ------- Run | Yrd Mat Min Active Infowar (turns) 866 | . 866 . Seismic 866 | . 866 . Robot Analysis Total . | . . . Derelict Logs Recovered . | . . . Drone Launches . | . . . Drone Recoveries . | . . . Exploration | -11 -10 -10 ------------- Run | Yrd Mat Min Turns Passed 2078 | 64 1952 62 Spaces Moved 1046 | 37 976 33 Core 6 | 6 . . Treads 1040 | 31 976 33 Legs . | . . . Wheels . | . . . Hover . | . . . Flight . | . . . Fastest Speed 50 | 50 160 160 Average Speed 159 | 142 160 160 Slowest Speed 160 | 160 160 160 Overloaded Moves . | . . . Propulsion Burnouts . | . . . Robots Hopped . | . . . Potential Cave-ins . | . . . Cave-ins Triggered . | . . . Exploration Rate (%) 39 | 4 94 20 Regions Visited 2 Branch Regions 1 Pre-discovered Areas . | . . . Known Exits Taken . | . . . Unknown Exits Taken 2 | 1 1 . Scrap Searched . | . . . Spaces Dug . | . . . Terrain Destroyed 13 | . . 13 Melee . | . . . Projectile . | . . . AOE 13 | . . 13 Terrain Rammed . | . . . Walls Destroyed . | . . . Machines Disabled . | . . . Actions | -11 -10 -10 --------- Run | Yrd Mat Min Total 1308 | 47 1223 38 Wait 120 | . 120 . Move 1044 | 36 975 33 Hop . | . . . Pick Up 29 | 6 23 . Fast Attach 10 | 4 6 . Attach 4 | 1 3 . Detach . | . . . Swap 8 | . 7 1 Drop 14 | . 14 . Fire 76 | . 72 4 Melee . | . . . Ram . | . . . Kick . | . . . Crush 3 | . 3 . Escape Stasis . | . . . Rewire . | . . . Trap . | . . . Miscellaneous . | . . . Route ------- -11/Scrapyard -10/Materials (discovered 6 exits: [*Mat x3] / [*Min x2] / [*Sub]) -10/Mines History --------- Turn | Location | Event 18 | -11/Scrapyard | Discovered new exit (range 16) 65 | -11/Scrapyard | Entered Materials 189 | -10/Materials | Discovered new exit (range 5) 301 | -10/Materials | Build established: Mutant 538 | -10/Materials | Discovered new exit (range 7) 717 | -10/Materials | Discovered new exit (range 4) 818 | -10/Materials | Discovered new exit (range 15) 978 | -10/Materials | Discovered new exit (range 8) 1289 | -10/Materials | Core integrity fell below 50% 1661 | -10/Materials | Discovered new exit (range 8) 2017 | -10/Materials | Entered Mines 2044 | -10/Mines | Assembled infested the area 2074 | -10/Mines | Core integrity fell below 20% 2079 | -10/Mines | Destroyed self with Grenade Launcher Last Messages --------------- Triggered Alarm Trap. An alarm sounds. ALERT: Alarm triggered, dispatching investigation squad. Connecting with Terminal... >>Enumerate(Transport) Retrieving latest reported positions... No active transport squads found. G-34 Mercenary destroyed. Acquired 30 matter. Acquired Ion Engine. U-05 Engineer lays Concrete. U-05 Engineer builds a Door. R-06 Scavenger collects Heat Sink. LOCATION=UNKNOWN GOAL=ESCAPE ALERT: Infestation in the mines, dispatching Demolisher response squad. as-65151 destroyed. Destroyed Asb. Hover Unit. Map ----- +----------------------------------------------------+ | ????????????????????????????????????????? | | ????????????????????????????????????????? | | ????????????????????????????????????????? | | ?????????????????????????????????????? | | ????????????????????????????????????? | | ?????????????????????????????????????# | | ?????????????????? ?????????????# | | ???????????????? ????????????# | | ?????????????? ????????????# | | ????????????? ???????????# | | ?????????????? ????????????# | | ?????????????? ???????????? | | ??????????????? ?????????????? | | ???????????????? ?????????????? | | ????????????????# #??????????##### | | ???????????????## ##?????????# ## | | ???????????????# ##??####### | | ????????######## ##?# | | ????????# ### | | ????????# ## ####### | | ????????????## ## #?????#### | | ???????????## # ##???????? | | ???????????# ## ##??????? | | ???????????# #### #??????? | | ???????????## ##?## #??????? | | ???????????## @##??# #??????? | | ???????????# aa#???# #??????? | | ???????????# a #???# ## ##??????? | | ???????????# a #????###### ##???????? | | ???????????# a ??????????# ##????????? | | ???????????# % ??????????# #?????????? | | ???????????# % #??????????# #?????????? | | ???????????# a #?????????? #?????????? | | ???????????## a#?????????? ?????????? | | ????????????# #?????????? #????????? | | ????????????a #?????????? ????????? | | ???????????? ?????????? ???????? | | ??????????? ??????????? #???????? | | ??????????? ??????????? ?#???????? | | ??????????? ?????????????#???????????? | | ???????????# ?????????????????????????? | | ???????????## ?????????????????????????? | | ?????????????# ?????????????????????????? | | ????????????????????????????????????????? | | ????????????????????????????????????????? | | ????????????????????????????????????????? | | ????????????????????????????????????????? | | ????????????????????????????????????????? | | ????????????????????????????????????????? | | ????????????????????????????????????????? | +----------------------------------------------------+ Best States ------------- Heat Dissipation 25 Energy Generation 14 Energy Capacity 250 Matter Stores 400 Matter Capacity 400 Sight Range 16 Terrain Scan Density 10 Evasion (%) 40 Recoil Reduction 2 Authchip Count 1 Item Schematics ----------------- None Robot Schematics ------------------ None Fabricated ------------ Nothing Repaired ---------- Nothing Studied --------- None Alien Tech Used ----------------- None Achievements -------------- None Challenges ------------ None Game ------ Seed GravityAssaultMapper Manual? 0 Play Time 00:21:10 Cumulative 37.5 hours Start 2026.09.13 @ 14:53:19 End 2026.09.13 @ 15:17:29 Sessions 1 Manual Loads 0 Difficulty Rogue Special Mode None Game No. 19 Rogue 19 Adventurer 0 Explorer 0 Win Type - Total 0 Types 0/0/0/0/0/0/0/0/0/0 Lore% 29 Gallery% 21 Achievement% 20 Wizard Run 0 Options --------- Layout 1 ASCII 0 Keyboard 0 Movement Numpad Keybinds 0 Fullscreen 1 Font 32/SmallcapsGlow Map View 50x40 Zoom Use 0% Tactical HUD 0 Map Filters NONE Filters NONE Steam 1 RUN: 5847643a-5654-4f52-a11f-8f110930001c